bitfinex-derivatives/quotes_BTCF0:USTF0_20210105
["timestamp","ask_amount","ask_price","bid_price","bid_amount"]
[1609886440556,0.0737756,35080.0,34272.0,0.2733]
[1609886440557,0.10404782,34273.0,34272.0,0.27150959]
[1609886441354,0.23148608,34273.0,34272.0,0.27150959]
[1609886442553,1.23148608,34273.0,34272.0,0.27150959]
[1609886445157,1.24031739,34273.0,34272.0,0.09245139]
[1609886446456,0.51601739,34273.0,34272.0,0.09245139]
[1609886446657,0.13971131,34273.0,34272.0,1.09245139]
[1609886446856,0.13971131,34273.0,34257.0,4.779]
[1609886447257,0.43827564,34266.0,34257.0,4.779]
[1609886447458,0.43827564,34266.0,34265.0,0.13632608]
[1609886447659,0.43827564,34266.0,34265.0,0.24302608]
[1609886448258,0.13632608,34283.0,34265.0,0.24302608]
[1609886448860,0.13632608,34283.0,34282.0,1.0]
[1609886449465,0.13632608,34283.0,34282.0,1.13632608]
[1609886450365,0.13632608,34283.0,34282.0,1.0]
[1609886450765,0.13632608,34283.0,34265.0,0.1067]
[1609886451467,0.13632608,34283.0,34282.0,0.13632608]
[1609886452967,0.13632608,34283.0,34282.0,1.13632608]
[1609886454567,1.0,34304.0,34282.0,1.13632608]
[1609886454767,1.0,34312.0,34282.0,1.13632608]
[1609886455467,1.0,34312.0,34288.0,0.13632608]
[1609886455468,0.13632608,34293.0,34288.0,0.13632608]
[1609886455773,1.0,34312.0,34288.0,0.13632608]
[1609886455968,1.0,34312.0,34288.0,0.28568608]
[1609886456869,1.0,34328.0,34288.0,6.28568608]
[1609886457070,0.4376678,34314.0,34288.0,6.28568608]
[1609886457469,0.5480278,34314.0,34306.0,0.13632608]
[1609886458272,0.11036,34314.0,34306.0,0.13632608]
[1609886458472,1.0,34328.0,34306.0,0.13632608]
[1609886458872,1.0,34335.0,34313.0,1.0]
[1609886459473,0.0884,34334.0,34317.0,0.13632608]
[1609886459672,0.19342,34334.0,34317.0,0.13632608]
[1609886460877,0.19342,34334.0,34323.0,1.0]
[1609886461376,0.43742977,34332.0,34323.0,1.0]
[1609886461575,0.13632608,34324.0,34323.0,1.0]
[1609886462777,0.13632608,34324.0,34317.0,0.13632608]
[1609886463379,0.13632608,34324.0,34315.0,1.0]
[1609886463578,0.13632608,34316.0,34315.0,1.0]
[1609886465381,0.12091,34325.0,34315.0,1.0]
[1609886465581,0.10502,34334.0,34324.0,0.13632608]
[1609886465782,0.30120987,34324.0,34315.0,1.0]
[1609886466282,0.10610987,34324.0,34315.0,1.0]
[1609886466682,0.10610987,34324.0,34316.0,4.6912]
[1609886466883,0.10610987,34324.0,34323.0,6.0]
[1609886467082,0.13632608,34344.0,34323.0,6.11619]
[1609886467483,0.13632608,34354.0,34343.0,0.13632608]
[1609886467884,0.13632608,34354.0,34343.0,0.22700608]
[1609886468885,0.13632608,34354.0,34345.0,1.0]
[1609886469586,0.13632608,34348.0,34345.0,1.0]
[1609886471487,0.13632608,34348.0,34347.0,0.13632608]
[1609886472689,0.1176,34361.0,34347.0,0.13632608]
[1609886472888,0.1176,34361.0,34347.0,1.13632608]
[1609886473492,1.0,34379.0,34347.0,1.13632608]
[1609886473493,0.73222487,34372.0,34358.0,0.13632608]
[1609886474696,0.43692487,34372.0,34358.0,0.13632608]
[1609886474892,0.2714,34395.0,34358.0,0.13632608]
[1609886475089,0.0869,34394.0,34358.0,0.13632608]
[1609886475290,0.10902,34394.0,34358.0,0.13632608]
[1609886475489,0.13632608,34368.0,34358.0,0.13632608]
[1609886476990,0.13632608,34368.0,34367.0,1.0]
[1609886477593,0.13632608,34368.0,34367.0,1.13632608]
[1609886479795,0.13632608,34368.0,34367.0,1.0]
[1609886480796,0.13632608,34368.0,34354.0,0.11247]
[1609886480995,0.13632608,34368.0,34350.0,3.4973]
[1609886481596,0.13632608,34368.0,34356.0,0.13632608]
[1609886482797,0.13632608,34368.0,34367.0,1.0]
[1609886484802,0.13632608,34368.0,34362.0,1.0]
[1609886485603,0.13632608,34363.0,34362.0,1.0]
[1609886490709,0.43702181,34364.0,34362.0,1.0]
[1609886490910,0.43702181,34364.0,34360.0,0.13632608]
[1609886491109,0.10752,34386.0,34360.0,0.13632608]
[1609886491608,0.10752,34386.0,34378.0,0.13632608]
[1609886491808,0.10902,34394.0,34378.0,0.13632608]
[1609886492209,0.2814,34406.0,34378.0,0.13632608]
[1609886492409,0.2814,34406.0,34368.0,3.802]
[1609886492609,0.42887,34406.0,34368.0,3.802]
[1609886492809,0.6102,34405.0,34368.0,3.802]
[1609886493412,0.43686603,34377.0,34368.0,3.802]
[1609886493613,0.13632608,34369.0,34356.0,0.13632608]
[1609886494014,0.54012603,34377.0,34356.0,0.13632608]
[1609886494213,0.10326,34377.0,34356.0,0.13632608]
[1609886494414,0.10326,34377.0,34356.0,0.24153608]
[1609886494716,4.2154,34399.0,34356.0,0.24153608]
[1609886494915,1.0,34400.0,34376.0,1.0]
[1609886495716,0.13632608,34379.0,34376.0,1.0]
[1609886496822,0.13632608,34379.0,34378.0,1.0]
[1609886499626,0.13632608,34379.0,34378.0,1.13632608]
[1609886502828,0.13632608,34379.0,34378.0,0.13632608]
[1609886506833,0.13632608,34379.0,34378.0,1.13632608]
[1609886508836,0.13632608,34379.0,34378.0,0.13632608]
[1609886510838,0.13632608,34379.0,34378.0,1.13632608]
[1609886511039,0.13632608,34379.0,34378.0,1.0]
[1609886512841,0.13632608,34379.0,34373.0,0.13632608]
[1609886513543,0.29680412,34379.0,34373.0,0.13632608]
[1609886514944,0.29680412,34379.0,34378.0,6.0]
[1609886515745,0.29680412,34379.0,34378.0,6.13632608]
[1609886516848,0.29680412,34379.0,34378.0,0.13632608]
[1609886527962,0.16047804,34379.0,34378.0,0.13632608]
[1609886528963,0.16047804,34379.0,34378.0,1.13632608]
[1609886530964,0.16047804,34379.0,34378.0,0.13632608]
[1609886532870,0.16047804,34379.0,34378.0,1.13632608]
[1609886534872,0.16047804,34379.0,34378.0,0.13632608]
[1609886538985,0.16047804,34379.0,34378.0,1.13632608]
[1609886542890,0.16047804,34379.0,34378.0,0.13632608]
[1609886544891,0.24847804,34379.0,34378.0,1.13632608]
[1609886545092,0.16047804,34379.0,34378.0,1.13632608]
[1609886546892,0.16047804,34379.0,34378.0,0.13632608]
[1609886554809,0.16047804,34379.0,34378.0,6.13632608]
[1609886558813,0.16047804,34379.0,34378.0,0.13632608]
[1609886559213,0.16047804,34379.0,34373.0,1.44513318]
[1609886560015,0.16047804,34379.0,34378.0,0.13632608]
[1609886560214,0.16047804,34379.0,34378.0,0.28457608]
[1609886568924,0.16047804,34379.0,34378.0,1.28457608]
[1609886570927,0.16047804,34379.0,34378.0,6.28457608]
[1609886572826,0.16047804,34379.0,34378.0,0.28457608]
[1609886577031,0.16047804,34379.0,34378.0,2.47249899]
[1609886578938,0.16047804,34379.0,34378.0,3.47249899]
[1609886580237,0.16047804,34379.0,34378.0,1.28457608]
[1609886582639,0.16047804,34379.0,34378.0,3.47228341]
[1609886583340,0.16047804,34379.0,34378.0,1.28457608]
[1609886584945,0.16047804,34379.0,34378.0,0.28457608]
[1609886586947,0.16047804,34379.0,34378.0,1.28457608]
[1609886590853,0.16047804,34379.0,34378.0,0.28457608]
[1609886593054,0.16047804,34379.0,34378.0,1.28457608]
[1609886596865,0.16047804,34379.0,34378.0,8.43758135]
[1609886597667,0.11047804,34379.0,34378.0,8.43758135]
[1609886598867,0.11047804,34379.0,34378.0,2.43758135]
[1609886599065,0.11047804,34379.0,34378.0,8.43758135]
[1609886604872,0.11047804,34379.0,34378.0,9.07308135]
[1609886606871,0.11047804,34379.0,34378.0,3.07308135]
[1609886608875,0.11047804,34379.0,34378.0,9.07308135]
[1609886609775,0.13632608,34395.0,34378.0,9.07308135]
[1609886610276,0.13632608,34395.0,34394.0,0.13632608]
[1609886614077,0.13632608,34395.0,34394.0,1.13632608]
[1609886615076,0.13632608,34395.0,34394.0,0.88194575]
[1609886615376,0.13632608,34395.0,34394.0,1.0]
[1609886616377,0.13632608,34395.0,34394.0,1.13632608]
[1609886617378,0.13632608,34395.0,34394.0,0.13632608]
[1609886619380,0.13632608,34395.0,34394.0,6.13632608]
[1609886629397,0.13632608,34395.0,34394.0,0.13632608]
[1609886631401,0.13632608,34395.0,34394.0,1.13632608]
[1609886633405,0.13632608,34395.0,34394.0,6.13632608]
[1609886637405,0.13632608,34395.0,34394.0,1.13632608]
[1609886641311,0.13632608,34395.0,34394.0,0.13632608]
[1609886643412,0.13632608,34395.0,34394.0,1.13632608]
[1609886647415,0.13632608,34395.0,34394.0,0.13632608]
[1609886649317,0.13632608,34395.0,34394.0,1.13632608]
[1609886651525,0.13632608,34395.0,34394.0,0.13632608]
[1609886653327,0.13632608,34395.0,34394.0,1.13632608]
[1609886656326,0.63474597,34395.0,34394.0,1.0]
[1609886659330,0.63474597,34395.0,34393.0,0.13632608]
[1609886659533,0.63474597,34395.0,34394.0,1.0]
[1609886670848,0.63474597,34395.0,34394.0,0.3185]
[1609886671250,0.63474597,34395.0,34386.0,0.01957831]
[1609886672245,2.13474597,34395.0,34386.0,0.01957831]
[1609886672644,0.13632608,34387.0,34386.0,0.01957831]
[1609886672846,0.24475608,34387.0,34386.0,0.01957831]
[1609886673246,1.24475608,34387.0,34386.0,0.01957831]
[1609886674244,0.41726588,34378.0,34366.0,2.15011859]
[1609886674444,0.52461588,34378.0,34366.0,2.15011859]
[1609886674645,0.13632608,34367.0,34366.0,2.15011859]
[1609886678352,0.13632608,34367.0,34366.0,1.71306464]
[1609886679751,0.13632608,34367.0,34355.0,1.0]
[1609886680657,0.01283605,34363.0,34355.0,1.0]
[1609886680856,0.13632608,34356.0,34355.0,1.0]
[1609886681255,0.01283605,34363.0,34352.0,0.13632608]
[1609886681456,0.01283605,34363.0,34352.0,0.25915608]
[1609886682057,0.0090922,34363.0,34352.0,0.25915608]
[1609886682257,0.01283516,34370.0,34352.0,0.25915608]
[1609886682758,0.01283516,34370.0,34352.0,0.12283]
[1609886684861,0.01283516,34370.0,34367.0,0.13632608]
[1609886685263,0.01283516,34370.0,34369.0,1.0]
[1609886686763,0.00374359,34370.0,34369.0,1.0]
[1609886687162,0.00374359,34370.0,34367.0,0.24628608]
[1609886687463,0.13632608,34377.0,34367.0,0.24628608]
[1609886688867,0.00371623,34390.0,34371.0,0.13632608]
[1609886689267,0.00371623,34390.0,34376.0,1.0]
[1609886689668,0.0037159,34392.0,34376.0,1.0]
[1609886690170,0.50213563,34395.0,34376.0,1.0]
[1609886690770,0.50213563,34395.0,34381.0,0.13632608]
[1609886690970,0.50213563,34395.0,34376.0,1.0]
[1609886691172,0.50213563,34395.0,34368.0,3.3943]
[1609886691970,0.49841989,34395.0,34367.0,0.10996]
[1609886692369,0.49841989,34395.0,34352.0,0.12283]
[1609886692370,0.49841989,34395.0,34357.0,4.1308]
[1609886692874,0.13632608,34375.0,34367.0,0.13632608]
[1609886693273,0.13632608,34375.0,34374.0,1.0]
[1609886701185,0.13632608,34375.0,34363.0,0.1266]
[1609886701387,0.13632608,34375.0,34359.0,4.8744]
[1609886701585,0.13632608,34375.0,34358.0,0.13632608]
[1609886702885,0.10077,34387.0,34365.0,0.13632608]
[1609886703086,0.10077,34387.0,34365.0,0.15023]
[1609886703287,1.5898,34380.0,34365.0,0.15023]
[1609886703486,1.73893,34380.0,34365.0,0.15023]
[1609886703989,1.73893,34380.0,34363.0,1.0]
[1609886704988,0.13632608,34364.0,34363.0,1.0]
[1609886705187,0.13632608,34364.0,34362.0,1.0]
[1609886707189,0.13632608,34364.0,34363.0,1.0]
[1609886709193,0.13632608,34364.0,34362.0,1.0]
[1609886711195,0.13632608,34364.0,34352.0,0.12283]
[1609886711394,0.13632608,34364.0,34336.0,3.456]
[1609886712596,0.13632608,34364.0,34330.0,2.15888449]
[1609886712996,0.13632608,34331.0,34330.0,2.15888449]
[1609886713397,0.13632608,34331.0,34329.0,5.0]
[1609886715204,0.13632608,34331.0,34323.0,2.16325744]
[1609886715606,0.13632608,34331.0,34320.0,2.16570476]
[1609886715805,4.5668,34329.0,34320.0,2.16570476]
[1609886716007,4.70108,34329.0,34320.0,2.16570476]
[1609886716608,4.70108,34329.0,34300.0,2.17450926]
[1609886717007,0.13632608,34301.0,34300.0,2.17450926]
[1609886717209,0.13632608,34301.0,34298.0,0.13632608]
[1609886718211,0.13632608,34301.0,34291.0,2.18654416]
[1609886719014,0.13632608,34292.0,34291.0,2.18654416]
[1609886719814,0.13632608,34292.0,34287.0,2.53183986]
[1609886719815,0.13632608,34292.0,34288.0,2.18869651]
[1609886720615,0.13632608,34292.0,34283.0,0.13632608]
[1609886721014,0.13632608,34284.0,34282.0,2.19455713]
[1609886723116,0.13632608,34284.0,34283.0,1.0]
[1609886724319,4.04882608,34284.0,34283.0,1.0]
[1609886725219,4.04882608,34284.0,34282.0,2.19455713]
[1609886725620,4.04882608,34284.0,34275.0,2.198709]
[1609886726321,4.04882608,34284.0,34256.0,2.2101606]
[1609886726922,0.13632608,34271.0,34259.0,0.13632608]
[1609886727124,0.13632608,34271.0,34256.0,2.2101606]
[1609886727321,0.13632608,34271.0,34255.0,2.21062369]
[1609886728123,0.13632608,34271.0,34253.0,5.0]
[1609886729022,0.13632608,34271.0,34253.0,5.13632608]
[1609886729222,0.13632608,34271.0,34253.0,0.13632608]
[1609886731027,0.43811872,34278.0,34265.0,0.13632608]
[1609886731228,0.43811872,34278.0,34265.0,0.26782608]
[1609886732329,1.01091872,34278.0,34265.0,0.26782608]
[1609886732929,0.13632608,34266.0,34265.0,0.26782608]
[1609886733336,3.73282608,34266.0,34265.0,0.1315]
[1609886735229,3.73282608,34266.0,34265.0,1.1315]
[1609886735432,0.13632608,34266.0,34265.0,1.1315]
[1609886737333,0.13632608,34266.0,34265.0,0.1315]
[1609886737531,0.13632608,34266.0,34241.0,0.1771]
[1609886738330,4.73922608,34266.0,34241.0,0.1771]
[1609886738531,4.73922608,34266.0,34219.0,4.0397]
[1609886739131,0.13632608,34252.0,34244.0,0.13632608]
[1609886740431,0.80312608,34252.0,34244.0,0.13632608]
[1609886740634,0.80312608,34252.0,34219.0,4.0397]
[1609886740833,0.13632608,34252.0,34218.0,0.1771]
[1609886741033,4.8959,34250.0,34240.0,0.13632608]
[1609886741233,4.8959,34250.0,34240.0,0.24586608]
[1609886742436,4.8959,34250.0,34240.0,0.10954]
[1609886743034,0.13632608,34241.0,34240.0,0.10954]
[1609886743234,0.65172608,34241.0,34240.0,0.10954]
[1609886744035,0.65172608,34241.0,34208.0,0.356]
[1609886744235,0.13632608,34241.0,34208.0,0.356]
[1609886744435,4.2439,34227.0,34208.0,0.356]
[1609886745135,0.13632608,34209.0,34208.0,0.356]
[1609886745335,0.13632608,34209.0,34206.0,0.13632608]
[1609886745536,3.6493,34208.0,34206.0,0.13632608]
[1609886745935,3.6493,34208.0,34180.0,0.5331]
[1609886746536,0.13632608,34209.0,34180.0,0.5331]
[1609886746735,0.13632608,34209.0,34180.0,0.66144]
[1609886747135,4.0494,34234.0,34208.0,6.0]
[1609886747336,0.12913,34239.0,34209.0,0.1771]
[1609886747537,4.5008,34231.0,34209.0,0.1771]
[1609886747735,0.12913,34239.0,34209.0,0.1771]
[1609886747935,3.8714,34209.0,34208.0,6.0]
[1609886748338,3.73507392,34209.0,34208.0,6.0]
[1609886749136,6.13632608,34209.0,34180.0,0.12834]
[1609886749540,0.13632608,34209.0,34180.0,0.12834]
[1609886749739,3.7275,34182.0,34180.0,0.12834]
[1609886750541,0.2765,34208.0,34180.0,0.12834]
[1609886750742,0.4391669,34197.0,34180.0,0.12834]
[1609886751145,0.13632608,34181.0,34180.0,0.12834]
[1609886751343,0.4391669,34197.0,34180.0,0.12834]
[1609886751745,0.2765,34208.0,34170.0,0.1771]
[1609886751944,0.2765,34208.0,34180.0,0.13881]
[1609886753544,1.0,34201.0,34184.0,1.0]
[1609886755146,0.13632608,34185.0,34184.0,1.0]
[1609886755546,0.13632608,34185.0,34180.0,0.13881]
[1609886757045,0.13632608,34181.0,34175.0,5.0]
[1609886757445,0.13632608,34181.0,34168.0,0.13632608]
[1609886757848,0.2765,34208.0,34168.0,0.13632608]
[1609886758047,0.2765,34208.0,34169.0,0.1771]
[1609886758247,0.2765,34208.0,34169.0,0.30063]
[1609886761048,0.2765,34208.0,34190.0,0.13632608]
[1609886761249,0.2765,34208.0,34190.0,0.27353608]
[1609886761850,0.2765,34208.0,34190.0,0.13721]
[1609886763052,0.13632608,34191.0,34190.0,0.13721]
[1609886764451,0.2765,34208.0,34190.0,0.13721]
[1609886765052,1.0,34213.0,34207.0,0.13632608]
[1609886765453,0.13632608,34217.0,34207.0,0.13632608]
[1609886765853,4.1828,34251.0,34207.0,0.13632608]
[1609886766254,4.1828,34251.0,34198.0,3.606]
[1609886766654,4.1828,34251.0,34199.0,0.1771]
[1609886766854,4.1828,34251.0,34199.0,0.28549]
[1609886767055,0.13632608,34229.0,34227.0,0.13632608]
[1609886767255,0.13632608,34229.0,34199.0,0.28549]
[1609886767455,0.13632608,34229.0,34216.0,4.4081]
[1609886767655,4.2316,34268.0,34216.0,4.53282]
[1609886767856,0.43870379,34233.0,34216.0,4.53282]
[1609886768256,0.14918,34286.0,34216.0,0.12472]
[1609886768456,4.04,34255.0,34216.0,0.12472]
[1609886769056,4.04,34255.0,34219.0,0.13632608]
[1609886769457,4.04,34255.0,34216.0,0.12472]
[1609886771060,0.13632608,34228.0,34225.0,0.13632608]
[1609886771261,4.04,34255.0,34225.0,0.13632608]
[1609886771461,0.43866693,34236.0,34225.0,0.27669608]
[1609886772062,0.43866693,34236.0,34228.0,4.6404]
[1609886772264,0.00358963,34285.0,34228.0,4.6404]
[1609886773063,0.17516207,34286.0,34228.0,4.6404]
[1609886773064,0.13632608,34242.0,34235.0,0.13632608]
[1609886773664,0.12191,34279.0,34235.0,0.13632608]
[1609886773863,0.12191,34279.0,34235.0,0.27294608]
[1609886774565,0.14918,34286.0,34235.0,0.27294608]
[1609886774765,0.00363028,34294.0,34235.0,0.27294608]
[1609886775166,0.13632608,34254.0,34240.0,0.13632608]
[1609886775566,0.13632608,34254.0,34242.0,5.11967]
[1609886776968,1.0,34276.0,34242.0,5.11967]
[1609886777169,1.0,34276.0,34263.0,0.13632608]
[1609886777369,1.0,34276.0,34263.0,0.28440608]
[1609886777570,0.2909,34289.0,34263.0,0.28440608]
[1609886779170,0.2909,34289.0,34288.0,0.13632608]
[1609886779371,0.2909,34289.0,34288.0,1.13632608]
[1609886779571,0.2909,34289.0,34288.0,1.28343608]
[1609886780172,0.43791935,34294.0,34288.0,1.28343608]
[1609886780973,0.00364647,34336.0,34288.0,1.28343608]
[1609886781174,0.00364647,34336.0,34306.0,0.13632608]
[1609886781374,0.00364647,34336.0,34306.0,0.22791608]
[1609886781573,1.0,34329.0,34312.0,1.0]
[1609886783177,1.0,34329.0,34320.0,0.13632608]
[1609886783378,0.00364513,34350.0,34325.0,3.8231]
[1609886783580,0.00364425,34354.0,34328.0,6.0]
[1609886783978,0.00364425,34354.0,34328.0,5.66420829]
[1609886784179,0.00364425,34354.0,34328.0,0.10174]
[1609886785179,0.00364425,34354.0,34353.0,0.13632608]
[1609886785380,0.00364425,34354.0,34353.0,0.26244608]
[1609886786380,0.00364425,34354.0,34353.0,0.12612]
[1609886786781,0.290141,34369.0,34353.0,0.12612]
[1609886787184,0.13632608,34355.0,34353.0,0.12612]
[1609886790285,0.2865,34369.0,34354.0,1.0]
[1609886790487,0.2865,34369.0,34354.0,1.13298]
[1609886791187,0.13632608,34364.0,34357.0,0.13632608]
[1609886793091,0.2865,34369.0,34357.0,0.70312608]
[1609886793289,0.2865,34369.0,34368.0,0.13632608]
[1609886793490,0.2865,34369.0,34368.0,0.25813608]
[1609886794291,0.2865,34369.0,34368.0,6.25813608]
[1609886796192,0.2865,34369.0,34368.0,0.25813608]
[1609886797098,0.2865,34369.0,34368.0,0.12181]
[1609886798695,0.2865,34369.0,34363.0,0.13632608]
[1609886798895,0.2865,34369.0,34368.0,0.13262]
[1609886799196,0.42282608,34369.0,34368.0,0.13262]
[1609886800196,0.42282608,34369.0,34368.0,1.13262]
[1609886800697,0.2865,34369.0,34368.0,1.13262]
[1609886801298,0.42282608,34369.0,34368.0,1.13262]
[1609886802198,0.42282608,34369.0,34368.0,0.13262]
[1609886804002,0.42282608,34369.0,34368.0,0.12905]
[1609886804201,0.2865,34369.0,34368.0,1.12905]
[1609886805304,0.42282608,34369.0,34368.0,1.12905]
[1609886806206,1.42282608,34369.0,34368.0,0.12905]
[1609886806405,1.42282608,34369.0,34361.0,0.1494]
[1609886807205,0.13632608,34362.0,34361.0,0.1494]
[1609886807404,0.13632608,34362.0,34336.0,3.7278]
[1609886808006,0.25540608,34362.0,34336.0,3.7278]
[1609886808607,0.50043841,34362.0,34325.0,0.13632608]
[1609886809208,0.13632608,34326.0,34320.0,0.13632608]
[1609886810008,0.13632608,34326.0,34312.0,4.8587]
[1609886810207,0.13632608,34326.0,34319.0,1.0]
[1609886810607,0.13632608,34326.0,34319.0,1.13905]
[1609886811207,0.13632608,34320.0,34319.0,1.13905]
[1609886812307,0.13632608,34320.0,34313.0,1.0]
[1609886813211,0.13632608,34314.0,34313.0,1.0]
[1609886814210,0.13632608,34314.0,34306.0,0.13632608]
[1609886814810,0.13632608,34314.0,34299.0,3.3788]
[1609886815212,0.13632608,34300.0,34299.0,3.3788]
[1609886815411,0.13632608,34300.0,34290.0,0.13632608]
[1609886816312,0.13632608,34300.0,34299.0,1.0]
[1609886816513,0.13632608,34300.0,34299.0,1.09731]
[1609886817213,0.13632608,34312.0,34299.0,1.23363608]
[1609886817413,1.0,34316.0,34299.0,1.23363608]
[1609886817615,0.86367392,34316.0,34299.0,1.23363608]
[1609886817814,1.0,34332.0,34315.0,1.0]
[1609886818014,1.0,34332.0,34315.0,1.12758]
[1609886819014,1.0,34332.0,34315.0,0.68980535]
[1609886819216,0.13632608,34330.0,34325.0,0.13632608]
[1609886820718,1.0,34336.0,34325.0,0.13632608]
[1609886820919,1.0,34336.0,34325.0,0.27790608]
[1609886821320,0.13632608,34326.0,34325.0,0.27790608]
[1609886821819,1.0,34340.0,34325.0,0.27790608]
[1609886823320,0.43745065,34331.0,34325.0,0.14158]
[1609886824621,0.271,34373.0,34325.0,0.14158]
[1609886824836,0.271,34373.0,34326.0,0.1771]
[1609886825223,0.271,34373.0,34369.0,1.0]
[1609886825424,0.271,34373.0,34372.0,0.13632608]
[1609886825624,0.13632608,34374.0,34372.0,0.13632608]
[1609886826024,1.0,34386.0,34372.0,0.13632608]
[1609886827327,0.292,34403.0,34385.0,0.13632608]
[1609886827527,0.292,34403.0,34385.0,0.09302]
[1609886829428,0.13632608,34388.0,34385.0,0.09302]
[1609886831233,0.13632608,34388.0,34385.0,1.09302]
[1609886831433,0.13632608,34388.0,34387.0,0.13632608]
[1609886832133,0.13632608,34388.0,34385.0,1.09302]
[1609886833234,0.13632608,34388.0,34385.0,0.09302]
[1609886833433,0.13632608,34388.0,34384.0,0.13632608]
[1609886835037,0.13632608,34388.0,34369.0,0.12085]
[1609886835437,0.13632608,34388.0,34381.0,0.13632608]
[1609886835837,0.13632608,34388.0,34381.0,0.28580608]
[1609886837438,0.13632608,34384.0,34381.0,0.28580608]
[1609886837637,0.13632608,34384.0,34381.0,0.14948]
[1609886838038,0.13632608,34384.0,34345.0,2.09860912]
[1609886839339,0.13632608,34384.0,34375.0,0.13632608]
[1609886841341,0.13632608,34377.0,34375.0,0.13632608]
[1609886845344,0.13632608,34377.0,34376.0,1.0]
[1609886847151,0.13632608,34377.0,34375.0,0.13632608]
[1609886847349,0.13632608,34377.0,34376.0,1.0]
[1609886848147,0.28485215,34386.0,34376.0,1.0]
[1609886849248,0.28485215,34386.0,34375.0,0.13632608]
[1609886849447,0.13632608,34378.0,34375.0,0.13632608]
[1609886852850,0.13632608,34378.0,34371.0,0.11917]
[1609886853053,0.13632608,34378.0,34361.0,4.8614]
[1609886853451,0.13632608,34378.0,34368.0,0.13632608]
[1609886857459,0.09346,34384.0,34363.0,0.12171]
[1609886857460,0.09346,34384.0,34372.0,0.13632608]
[1609886858261,0.09346,34384.0,34363.0,0.12171]
[1609886858664,0.28485215,34386.0,34363.0,0.12171]
[1609886858862,0.28485215,34386.0,34354.0,0.12592]
[1609886859061,0.43682774,34380.0,34354.0,0.12592]
[1609886859464,0.13632608,34355.0,34354.0,0.12592]
[1609886859663,0.13632608,34355.0,34347.0,0.13632608]
[1609886859865,0.13632608,34355.0,34341.0,2.10664939]
[1609886860868,0.13632608,34355.0,34331.0,2.59243375]
[1609886860869,0.13632608,34355.0,34326.0,2.11695549]
[1609886861469,0.13632608,34340.0,34335.0,0.13632608]
[1609886863371,0.43725101,34346.0,34335.0,0.13632608]
[1609886863570,0.43725101,34346.0,34345.0,0.13632608]
[1609886863770,0.12555,34354.0,34345.0,0.13632608]
[1609886865574,0.13632608,34347.0,34345.0,0.13632608]
[1609886867881,1.0,34360.0,34345.0,0.13632608]
[1609886869282,4.4764,34372.0,34359.0,1.0]
[1609886869482,0.2725,34376.0,34371.0,0.13632608]
[1609886869681,0.13632608,34377.0,34371.0,0.13632608]
[1609886870082,0.20628209,34362.0,34359.0,1.13072]
[1609886871083,0.13632608,34377.0,34359.0,1.13072]
[1609886871284,4.48882608,34377.0,34361.0,1.0]
[1609886871484,0.13632608,34366.0,34364.0,0.13632608]
[1609886871684,0.13632608,34366.0,34361.0,1.0]
[1609886872984,0.24531608,34366.0,34361.0,1.0]
[1609886873188,0.24531608,34366.0,34343.0,3.3932]
[1609886873384,0.73351608,34366.0,34335.0,2.11176713]
[1609886873585,0.13632608,34343.0,34337.0,0.13632608]
[1609886874186,4.5178,34358.0,34337.0,0.13632608]
[1609886875586,0.13632608,34338.0,34337.0,0.13632608]
[1609886877688,0.13632608,34338.0,34333.0,0.13632608]
[1609886877888,0.13632608,34338.0,34323.0,2.31207948]
[1609886879690,0.13632608,34324.0,34323.0,2.13497948]
[1609886880090,0.13632608,34324.0,34317.0,2.46278066]
[1609886880091,0.13632608,34324.0,34321.0,2.29870907]
[1609886880691,0.13632608,34324.0,34321.0,2.13060907]
[1609886881095,0.13632608,34324.0,34310.0,2.14911111]
[1609886881694,0.13632608,34311.0,34310.0,2.14911111]
[1609886881895,0.13632608,34311.0,34305.0,2.16262253]
[1609886882897,0.13632608,34311.0,34304.0,2.16354052]
[1609886883702,0.13632608,34305.0,34304.0,2.16354052]
[1609886883902,0.13632608,34305.0,34300.0,0.1771]
[1609886884402,0.10894,34315.0,34300.0,0.1771]
[1609886884601,4.5276,34306.0,34300.0,0.1771]
[1609886885002,4.5276,34306.0,34299.0,0.10099]
[1609886885201,0.10894,34315.0,34299.0,0.10099]
[1609886885402,0.10894,34315.0,34292.0,0.09026]
[1609886885602,0.13632608,34293.0,34292.0,0.09026]
[1609886886503,0.73692608,34293.0,34292.0,0.09026]
[1609886886904,0.73692608,34293.0,34286.0,2.48910211]
[1609886887406,0.73692608,34293.0,34281.0,0.1771]
[1609886887605,0.13632608,34282.0,34281.0,0.1771]
[1609886888207,3.87502608,34282.0,34281.0,0.1771]
[1609886888406,3.87502608,34282.0,34267.0,0.1771]
[1609886888606,0.13632608,34282.0,34267.0,0.1771]
[1609886888808,3.4457,34274.0,34267.0,0.1771]
[1609886889408,3.4457,34274.0,34260.0,2.1529403]
[1609886889607,0.13632608,34267.0,34266.0,0.13632608]
[1609886889808,3.22410267,34274.0,34266.0,0.13632608]
[1609886890008,3.22410267,34274.0,34266.0,0.28404608]
[1609886891709,0.13632608,34268.0,34266.0,0.14772]
[1609886894611,0.5495,34267.0,34266.0,0.14772]
[1609886895212,0.5495,34267.0,34246.0,3.8761]
[1609886895813,0.09354,34283.0,34263.0,0.24265608]
[1609886896414,4.7417,34288.0,34263.0,0.24265608]
[1609886896814,0.11261,34307.0,34263.0,0.24265608]
[1609886897012,3.62601,34307.0,34264.0,3.9881]
[1609886897613,1.0,34301.0,34284.0,1.0]
[1609886897816,0.13632608,34288.0,34287.0,0.13632608]
[1609886899516,3.5134,34307.0,34287.0,1.13632608]
[1609886899718,0.13632608,34302.0,34296.0,0.13632608]
[1609886899918,1.0,34310.0,34296.0,0.28331608]
[1609886900319,1.0,34310.0,34296.0,0.14699]
[1609886901420,0.43784769,34300.0,34296.0,0.14699]
[1609886901823,0.57417377,34300.0,34296.0,0.28331608]
[1609886902920,0.57417377,34300.0,34296.0,0.14699]
[1609886903722,4.37367377,34300.0,34287.0,0.1304]
[1609886904022,3.93582608,34300.0,34287.0,0.1304]
[1609886904425,0.13632608,34300.0,34287.0,0.1304]
[1609886904823,0.13632608,34300.0,34278.0,4.1079]
[1609886905725,0.13632608,34285.0,34278.0,4.1079]
[1609886905926,0.13632608,34285.0,34275.0,0.13632608]
[1609886906526,0.645,34284.0,34264.0,0.1771]